Cogmind - Beta 9.6 @@@ ROGUE MODE // 2020.05.12 @ 17:50:22 Player: RNGesus Result: Self-destructed Performance ------------- Evolutions (2) 1000 Regions Visited (5) 1000 Robots Destroyed (58) 290 Value Destroyed (813) 813 Prototype IDs (22) 440 Alien Tech Used (0) 0 Bonus (335) 335 TOTAL SCORE: 3878 Bonus ------- Follower Combat Kills 35 Aligned with FarCom 300 Cogmind --------- Core Integrity 365/550 Matter 203/300 Energy 100/100 System Corruption 0% Temperature Cool (0) Movement Core (700) Ox13 Location -8/Materials Parts ------- > --- POWER (1) -------- (None) > --- PROPULSION (3) --- (None) > --- UTILITY (5) ------ Medium Storage Unit High-capacity Storage Unit > --- WEAPON (2) ------- (None) > --- INVENTORY (16) --- Ion Engine Light Ion Engine Medium Storage Unit Cloak of Protection Datajack Peak State ------------ > --- POWER ------------ Light Ion Engine > --- PROPULSION ------- Light Treads Light Treads > --- UTILITY ---------- Improved Heat Sink Medium Storage Unit High-capacity Storage Unit > --- WEAPON ----------- Medium Laser Rocket Launcher > --- INVENTORY -------- Ion Engine Medium Storage Unit Cloak of Protection Grenade Launcher Datajack [Rating: 12] Favorites ----------- Power Light Ion Engine Engine Light Ion Engine Propulsion Aluminum Leg Treads Light Treads Leg Aluminum Leg Utility Medium Storage Unit Device Improved Heat Sink Storage Medium Storage Unit Weapon Assault Rifle Energy Gun Medium Laser Ballistic Gun Assault Rifle Launcher Grenade Launcher Special Melee Weapon Datajack Build | -11 -10 -10 -10 -9 -8 ------- Run | Scr Mat Min Exi Min Mat Slots Evolved 4 | . . . . . 4 Power . | . . . . . . Propulsion 1 | . . . . . 1 Utility 3 | . . . . . 3 Weapon . | . . . . . . Parts Attached 24 | 4 3 4 2 5 6 Power 2 | 1 . . . 1 . Engine 2 | 1 . . . 1 . Core . | . . . . . . Reactor . | . . . . . . Propulsion 5 | 2 . . 1 2 . Treads 3 | . . . 1 2 . Leg 2 | 2 . . . . . Wheel . | . . . . . . Hover . | . . . . . . Flight . | . . . . . . Utility 6 | 1 1 2 1 . 1 Device 1 | . . . . . 1 Storage 5 | 1 1 2 1 . . Processor . | . . . . . . Hackware . | . . . . . . Protection . | . . . . . . Artifact . | . . . . . . Weapon 11 | . 2 2 . 2 5 Energy Gun 1 | . . . . . 1 Energy Cannon . | . . . . . . Ballistic Gun 5 | . 2 . . . 3 Ballistic Cannon . | . . . . . . Launcher 4 | . . 1 . 2 1 Special Weapon . | . . . . . . Impact Weapon . | . . . . . . Slashing Weapon . | . . . . . . Piercing Weapon . | . . . . . . Special Melee Weapon 1 | . . 1 . . . Unidentified Prototypes . | . . . . . . Parts Lost 16 | . . 2 . 4 10 Power 2 | . . . . 1 1 Propulsion 3 | . . 1 . . 2 Utility 1 | . . . . . 1 Weapon 10 | . . 1 . 3 6 Highest Loss Streak 5 | . . 1 . 4 5 Average Slot Usage (%) 87 | . 83 85 100 95 51 Engine 12 | . 14 14 14 14 1 Treads 6 | . . . 14 14 10 Leg 17 | . 28 19 14 13 . Storage 24 | . 15 28 28 28 18 Ballistic Gun 15 | . 24 14 14 9 7 Launcher 8 | . . 7 14 13 5 Naked Turns . | . . . . . . Heaviest Build 50 | 7 19 24 48 48 50 Greatest Support 40 | 20 20 20 20 40 40 Greatest Overweight (x) 2 | . . 2 2 2 2 Average Overweight (x) 1 | . . . 1 1 1 Largest Inventory Capacity 16 | 6 10 12 16 16 16 Average Capacity 12 | 5 6 10 15 16 16 Most Carried 13 | 6 8 10 13 10 6 Average Carried 7 | 4 5 9 9 9 4 Final Capacity 16 | 6 10 12 16 16 16 Final Carried 10 | 6 8 9 10 7 5 Class Distribution -------------------- 100% | Mutant Dominant Class ---------------- Mutant | -10/Materials Mutant | -10/Mines Mutant | -10/Exiles Mutant | -9/Mines Mutant | -8/Materials Resources | -11 -10 -10 -10 -9 -8 ----------- Run | Scr Mat Min Exi Min Mat Matter Collected 907 | 157 295 194 . 182 79 Remotely . | . . . . . . Salvage Created 1069 | . 585 130 . 51 303 Parts 81 | . 42 15 . 7 17 Haulers Intercepted 2 | . 2 . . . . Recyclers Shooed 5 | . 2 . . . 3 Parts Field Recycled . | . . . . . . Retrieved Matter . | . . . . . . Parts Self-Destructed . | . . . . . . Prevented . | . . . . . . Kills | -11 -10 -10 -10 -9 -8 ------- Run | Scr Mat Min Exi Min Mat Combat Hostiles Destroyed 51 | . 14 5 . 20 12 Guns 27 | . 14 4 . . 9 AOE 24 | . . 1 . 20 3 Classes Destroyed 9 | . 6 1 . 1 1 Worker 2 | . 2 . . . . Tunneler 1 | . . 1 . . . Hauler 2 | . 2 . . . . Recycler 1 | . 1 . . . . Operator 1 | . 1 . . . . Swarmer 23 | . 9 3 . 4 7 Grunt 12 | . 5 2 . 1 4 Sentry 1 | . . . . . 1 Assembled 15 | . . . . 15 . Best Kill Streak 15 | . 5 2 . 15 5 Combat Bots Only 15 | . 5 2 . 15 5 Max Kills in Single Turn 3 | . 1 1 . 3 1 Gunslinging . | . . . . . . Exploded 3 | . . 1 . 3 1 Melee . | . . . . . . Uniques/NPCs Destroyed . | . . . . . . Combat | -11 -10 -10 -10 -9 -8 -------- Run | Scr Mat Min Exi Min Mat Damage Taken 2088 | . 319 216 . 539 1014 Core 406 | . 123 59 . 39 185 Absorbed by Shields . | . . . . . . Core Remaining (%) 55 | 100 . . . 11 . Volleys Fired 145 | . 44 20 . 17 64 Largest 2 | . 2 2 . 1 2 Hottest 50 | . 40 40 . 33 50 Shots Fired 210 | . 88 29 . 17 76 Gun 186 | . 88 28 . . 70 Cannon . | . . . . . . Launcher 24 | . . 1 . 17 6 Special . | . . . . . . Kinetic 176 | . 88 28 . . 60 Thermal 10 | . . . . . 10 Explosive 24 | . . 1 . 17 6 Electromagnetic . | . . . . . . Robot Hit Streak 11 | . 10 5 . 4 11 Robot Miss Streak 4 | . 3 4 . 3 3 Penetration Max . | . . . . . . Secondary Targets 2 | . 1 1 . . . Max Gunslinging Chain 1 | . 1 1 . . . Shots Hit Robots 130 | . 54 16 . 5 55 Core Hits 104 | . 28 9 . 40 27 Critical Hits 1 | . . . . . 1 Critical Kills 1 | . . . . . 1 Critical Parts Destroyed . | . . . . . . Melee Attacks . | . . . . . . Impact . | . . . . . . Slashing . | . . . . . . Piercing . | . . . . . . Sneak Attacks . | . . . . . . Combat Hostiles . | . . . . . . Follow-up Attacks . | . . . . . . Damage Inflicted 3376 | . 752 232 . 1578 814 Guns 1370 | . 741 192 . . 437 Cannons . | . . . . . . Explosions 1993 | . . 40 . 1576 377 Melee . | . . . . . . Ramming 13 | . 11 . . 2 . Kinetic 1270 | . 741 192 . . 337 Thermal 100 | . . . . . 100 Explosive 1993 | . . 40 . 1576 377 Electromagnetic . | . . . . . . Impact . | . . . . . . Slashing . | . . . . . . Piercing . | . . . . . . Highest Corruption 2 | . . . . 2 . Average Corruption 2 | . . . . 2 . Corruption Purged . | . . . . . . Overload Shots . | . . . . . . Overflow Damage 119 | . . . . 65 54 Projectiles . | . . . . . . Explosions 119 | . . . . 65 54 Melee . | . . . . . . Knockbacks . | . . . . . . Impact . | . . . . . . Kinetic . | . . . . . . Secondary . | . . . . . . Self-Inflicted Damage 328 | . 5 . . 147 176 Shots 10 | . . . . 5 5 Rammed 3 | . 1 . . 1 1 Targets Rammed 3 | . 1 . . 1 1 Kicked . | . . . . . . Crushed . | . . . . . . Highest Temperature 15 | . . 8 . 15 7 Average Temperature 4 | . . 2 . 8 7 Received Heat Transfer 556 | . 72 102 . 49 333 Siege Activations . | . . . . . . Robots Corrupted . | . . . . . . Combat Hostiles . | . . . . . . Parts Fried . | . . . . . . Impact Corruptions . | . . . . . . Robots Melted . | . . . . . . Combat Hostiles . | . . . . . . Parts Melted 3 | . . . . . 3 Heat Transferred 296 | . . . . . 296 Parts Sabotaged . | . . . . . . Parts Stolen . | . . . . . . Parts Stripped . | . . . . . . Power Chain Reactions . | . . . . . . Missiles Intercepted . | . . . . . . Alert | -11 -10 -10 -10 -9 -8 ------- Run | Scr Mat Min Exi Min Mat Peak Influence 324 | . 324 170 . 178 280 Average Influence 126 | . 195 85 . 119 141 Maximum Alert Level 1 | . 1 . . . 1 Low Security (%) 77 | 100 35 100 . 100 55 Level 1 22 | . 64 . . . 44 Level 2 . | . . . . . . Level 3 . | . . . . . . Level 4 . | . . . . . . Level 5 . | . . . . . . High Security . | . . . . . . Max Security . | . . . . . . Squads Dispatched 4 | . 2 . . . 2 Investigation 1 | . 1 . . . . Extermination . | . . . . . . Reinforcement 3 | . 1 . . . 2 Assault . | . . . . . . Garrison . | . . . . . . Intercept . | . . . . . . Construction Impeded . | . . . . . . Haulers Reinforced . | . . . . . . Stealth | -11 -10 -10 -10 -9 -8 --------- Run | Scr Mat Min Exi Min Mat Distress Signals 5 | . 2 . . . 3 Communications Jammed . | . . . . . . Distress Signals . | . . . . . . Times Spotted 75 | . 25 5 . 24 21 Peak Tracking Total 13 | . 5 3 . 13 7 Tactical Retreats 6 | . . 1 . 2 3 Traps | -11 -10 -10 -10 -9 -8 ------- Run | Scr Mat Min Exi Min Mat Traps Triggered 1 | . 1 . . . . Indirectly . | . . . . . . Trap Hack Attempts . | . . . . . . Triggered . | . . . . . . Disarmed . | . . . . . . Reprogrammed . | . . . . . . Reused . | . . . . . . Traps Extracted . | . . . . . . Installed . | . . . . . . Triggered . | . . . . . . Machines | -11 -10 -10 -10 -9 -8 ---------- Run | Scr Mat Min Exi Min Mat Machines Disabled 3 | . . 1 . 2 . Max in Single Turn 2 | . . 1 . 2 . Machines Sabotaged . | . . . . . . Garrisons Compromised . | . . . . . . Overloaded Fab Kills . | . . . . . . Fab Network Shutdowns . | . . . . . . Hacking | -11 -10 -10 -10 -9 -8 --------- Run | Scr Mat Min Exi Min Mat Machines Accessed 3 | . 1 . 2 . . Terminals 1 | . 1 . . . . Fabricators . | . . . . . . Repair Stations . | . . . . . . Recycling Units . | . . . . . . Scanalyzers . | . . . . . . Garrison Access . | . . . . . . Total Hacks 8 | . 3 . 5 . . Successful 6 | . 1 . 5 . . Failed 2 | . 2 . . . . Catastrophic . | . . . . . . Database Lockouts . | . . . . . . Manual 1 | . . . 1 . . Terminals 3 | . 3 . . . . Fabricators . | . . . . . . Repair Stations . | . . . . . . Recycling Units . | . . . . . . Scanalyzers . | . . . . . . Garrison Access . | . . . . . . Terminal Hacks 6 | . 1 . 5 . . Record 4 | . . . 4 . . Branch Access Points 1 | . 1 . . . . EX-Prototype ID Bank 1 | . . . 1 . . Fabricator Hacks . | . . . . . . Repair Station Hacks . | . . . . . . Recycling Unit Hacks . | . . . . . . Scanalyzer . | . . . . . . Garrison Access Hacks . | . . . . . . Unauthorized Hacks . | . . . . . . Terminals . | . . . . . . Fabricators . | . . . . . . Repair Stations . | . . . . . . Recycling Units . | . . . . . . Scanalyzers . | . . . . . . Garrison Access . | . . . . . . Data Cores Recovered . | . . . . . . Used . | . . . . . . Hacking Detections 1 | . 1 . . . . Full Trace Events . | . . . . . . Feedback Events . | . . . . . . Feedback Blocked . | . . . . . . Robot Schematics Acquired . | . . . . . . Robots Built . | . . . . . . Matter . | . . . . . . Time . | . . . . . . Total Robot Build Rating . | . . . . . . Part Schematics Acquired . | . . . . . . Parts Built . | . . . . . . Matter . | . . . . . . Time . | . . . . . . Total Part Build Rating . | . . . . . . Parts Repaired . | . . . . . . Time . | . . . . . . Parts Recycled . | . . . . . . Recycled Matter . | . . . . . . Retrieved Matter . | . . . . . . Retrieved Components . | . . . . . . Parts Scanalyzed . | . . . . . . Part Schematics Acquired . | . . . . . . Parts Damaged . | . . . . . . Bothacking | -11 -10 -10 -10 -9 -8 ------------ Run | Scr Mat Min Exi Min Mat Used RIF Installer . | . . . . . . Robots Hacked . | . . . . . . Non-combat . | . . . . . . Combat . | . . . . . . Robot Hacks Applied . | . . . . . . Relay Couplers Released . | . . . . . . Robots Rewired . | . . . . . . Allies Hacked . | . . . . . . Hacks Repelled . | . . . . . . Allies | -11 -10 -10 -10 -9 -8 -------- Run | Scr Mat Min Exi Min Mat Total Allies 4 | . . 1 . 3 . Largest Group 3 | . . 1 . 3 . Highest-Rated Group 40 | . . 31 . 40 . Highest-Rated Ally 31 | . . 31 . 16 . Total Orders . | . . . . . . Ally Attacks 13 | . . . . 13 . Total Damage 150 | . . . . 150 . Kills 2 | . . . . 2 . Allies Corrupted . | . . . . . . Allies Melted . | . . . . . . Intel | -11 -10 -10 -10 -9 -8 ------- Run | Scr Mat Min Exi Min Mat Robot Analysis Total . | . . . . . . Derelict Logs Recovered 2 | . . 1 . 1 . Drone Launches . | . . . . . . Drone Recoveries . | . . . . . . Exploration | -11 -10 -10 -10 -9 -8 ------------- Run | Scr Mat Min Exi Min Mat Turns Passed 2937 | 55 600 857 764 412 249 Spaces Moved 1579 | 41 373 534 388 186 57 Core 9 | 9 . . . . . Treads 631 | . . . 388 186 57 Legs 939 | 32 373 534 . . . Wheels . | . . . . . . Hover . | . . . . . . Flight . | . . . . . . Fastest Speed 50 | 50 120 120 180 180 180 Average Speed 159 | 104 120 147 196 198 192 Slowest Speed 200 | 120 120 180 200 200 200 Overloaded Moves . | . . . . . . Propulsion Burnouts . | . . . . . . Robots Hopped . | . . . . . . Cave-ins Triggered . | . . . . . . Exploration Rate (%) 50 | 3 66 97 78 51 8 Regions Visited 5 Branch Regions 3 Pre-discovered Areas 2 | . . . 1 1 . Known Exits Taken 1 | . 1 . . . . Unknown Exits Taken 4 | 1 . 1 1 1 . Scrap Searched 2 | . . 2 . . . Spaces Dug 19 | . . . . 19 . Terrain Destroyed 149 | . . 9 . 107 33 Melee . | . . . . . . Projectile . | . . . . . . AOE 149 | . . 9 . 107 33 Actions | -11 -10 -10 -10 -9 -8 --------- Run | Scr Mat Min Exi Min Mat Total 1797 | 51 437 576 392 211 130 Wait 26 | 1 9 16 . . . Move 1574 | 40 372 533 387 185 57 Hop . | . . . . . . Pick Up 19 | 6 6 2 2 1 2 Fast Attach 7 | 4 1 . . . 2 Attach 11 | . 2 1 1 3 4 Detach . | . . . . . . Swap 6 | . . 3 1 2 . Drop 6 | . 2 1 1 2 . Fire 145 | . 44 20 . 17 64 Melee . | . . . . . . Ram . | . . . . . . Kick 1 | . 1 . . . . Crush 2 | . . . . 1 1 Escape Stasis . | . . . . . . Rewire . | . . . . . . Trap . | . . . . . . Miscellaneous . | . . . . . . Route ------- -11/Scrapyard -10/Materials (discovered 3 exits: [*Mat x2] / *Min) -10/Mines (discovered 3 exits: [*Mat x2] / *Exi) -10/Exiles -9/Mines -8/Materials History --------- Turn | Location | Event 10 | -11/Scrapyard | Discovered new exit (range 14) 56 | -11/Scrapyard | Entered Materials 121 | -10/Materials | Identified exit to Mines 318 | -10/Materials | Build established: Mutant 377 | -10/Materials | Discovered new exit (range 16) 511 | -10/Materials | Discovered new exit (range 3) 656 | -10/Materials | Entered Mines 672 | -10/Mines | Core integrity fell below 50% 811 | -10/Mines | Deemed a non-threat by the Exiles lab entrance 812 | -10/Mines | Discovered new exit (range 5) 1006 | -10/Mines | Received a Rocket Launcher from a helpful Derelict 1022 | -10/Mines | Discovered new exit (range 8) 1154 | -10/Mines | Discovered new exit (range 11) 1157 | -10/Mines | Received a Mining Laser from a helpful Derelict 1338 | -10/Mines | Learned 2 Materials zone layouts 1513 | -10/Mines | Entered Exiles 1541 | -10/Exiles | Discovered new exit (range 15) 1559 | -10/Exiles | Met 8R-AWN 1588 | -10/Exiles | Met EX-HEX 1681 | -10/Exiles | Met EX-DEC 1718 | -10/Exiles | Visited The Gauntlet 1917 | -10/Exiles | Learned location of Zion (-7) 1961 | -10/Exiles | Met EX-BIN 1997 | -10/Exiles | Aligned with FarCom system 1999 | -10/Exiles | Given EX-Vault access code 2047 | -10/Exiles | Opened EX-Vault 2063 | -10/Exiles | Found Flying Fortress v7 2070 | -10/Exiles | Found Cloak of Protection 2117 | -10/Exiles | Warned to stay clear of 0b10 Research branches 2277 | -10/Exiles | Left Exiles lab with Cloak of Protection 2277 | -10/Exiles | Entered Mines 2315 | -9/Mines | Assisted by bots powering up and referring to "LRC-V3" 2409 | -9/Mines | Discovered new exit (range 12) 2538 | -9/Mines | Assembled infested the area 2543 | -9/Mines | Assisted by a Guerilla fighting off Assembled 2587 | -9/Mines | Core integrity fell below 20% 2605 | -9/Mines | Lost 4 parts (1p3w) 2611 | -9/Mines | Destroyed 15 combat bots 2689 | -9/Mines | Entered Materials 2689 | -8/Materials | Evolved 4 slots: Propulsion x1, Utility x3 2787 | -8/Materials | Lost 4 parts (1p1n2w) 2938 | -8/Materials | Self-destructed Last Messages --------------- 02851_ U-05 Engineer lays Concrete. 02852_ U-05 Engineer builds a Wall. 02854_ Acquired Lgt. Ion Engine. 02854_ U-05 Engineer builds a Wall. 02854_ U-05 Engineer lays Concrete. 02855_ Acquired 2 matter. 02857_ U-05 Engineer builds a Wall. 02859_ Acquired Lgt. Assault Rifle. 02860_ Slammed into U-05 Engineer. 02866_ U-05 Engineer builds a Wall. 02885_ Lgt. Assault Rifle destroyed. 02889_ Imp. Heat Sink destroyed. 02893_ Lgt. Treads destroyed. 02894_ G-47 Trooper destroyed. 02907_ Lgt. Assault Rifle destroyed. 02911_ R-06 Scavenger collects Aluminum Leg. 02915_ G-47 Trooper destroyed. 02924_ G-47 Trooper suffers critical hit. 02924_ G-47 Trooper destroyed. 02937_ Lgt. Assault Rifle destroyed. Map ----- +----------------------------------------------------+ | ?????????????????????????????????????????????????? | | ?????????????????????????????????????????????????? | | ?????????????????????????????????????????????????? | | ?????????????????????????????????????????????????? | | ?????????????????????????????????????????????????? | | ???????????????????########??????????????????????? | | ???????????????????# """" #####??????????????????? | | ???????????????????# """" # #??????????????????? | | ???????????????????# """" # #??????????????????? | | ???????????????????# # #??????????????????? | | ???????????????????# + #??????????????????? | | ???????????????????# # #??????????????????? | | ?????????????????########## #??????????????????? | | ?????????????????# ! # #??????????????????? | | ?????????????????# # #??????????????????? | | ?????????????????# # #??????????????????? | | ?????????????????# # #??????????????????? | | ???????g?????????# w + #??????????????????? | | ?????????????????# ! # #??????????????????? | | ???????????????### # #??????????????????? | | ???????????????? + # g #??????????????????? | | ??????????????????? # ##?????????????????? | | ?????????????##??##########g ##?????????????????? | | ????????????## # %#* ##?????????????????? | | ????????w??# ag% ##?????????????????? | | ????????????????## @# #?????????????????? | | ?????????????????# ! %# ##?????????????????? | | ?????????????????# ] # ##?????????????????? | | ?????????????????# # ##????????????###### | | ?????????????????# # #?????????????# | | ?????????????????# % # #?????????????# " | | ?????????????????#! ! # #?############# " | | ?????????????????####g##### #? # # " | | ???????????????????##% #??# #? """ # # | | ???????????????????## #??# #? """ # # " | | ???????????????????## #??? #? """ # # " | | ???????????????????## ##??? #? # # " | | ????????????????????# #???? #? # # | | ????????????????????# ????? #?#+######+######+## | | ???????????????????? ????? ? | | ?????????????g??????? ????? ? | | ????????????????????? ????? ?? | | ????????????????????????????????#+######+######### | | ?????????????????????????????????????????????????? | | ?????????????????????????????????????????????????? | | ?????????????????????????????????????????????????? | | ?????????????????????????????????????????????????? | | ?????????????????????????????????????????????????? | | ?????????????????????????????????????????????????? | | ?????????????????????????????????????????????????? | +----------------------------------------------------+ Best States ------------- Heat Dissipation 45 Energy Generation 10 Energy Capacity 125 Matter Stores 300 Matter Capacity 300 Sight Range 16 Terrain Scan Density 10 Evasion (%) 50 Recoil Reduction 2 Item Schematics ----------------- None Robot Schematics ------------------ None Fabricated ------------ Nothing Alien Tech Used ----------------- None Achievements -------------- None Challenges ------------ None Game ------ Seed RecyclingDirtyRedistributor Manual? 0 Play Time 00:15:43 Cumulative 219.9 hours Start 2020.05.11 @ 17:39:14 End 2020.05.12 @ 17:50:22 Sessions 2 Manual Loads 0 Difficulty Rogue Special Mode None Game No. 347 Rogue 347 Adventurer 0 Explorer 0 Win Type - Total 4 Types 2/0/1/1/0/0/0 Lore% 76 Gallery% 76 Achievement% 58 Wizard Run 0 Options --------- ASCII 0 Keyboard 1 Movement Numpad Keybinds 0 Fullscreen 2 Font 18/X11Bold Map View 76x50 Tactical HUD 1 Map Filters NONE Filters NONE Steam 1 RUN: 9b8fb3f0-bbaf-454d-8b1d-1960f905b8e4